fUSD/lending_fUSD_20251003
["ID","MTS","AMOUNT","RATE_DAILY","PERIOD"]
[388874544,1759452635416,-252.87371743,0.00021566,2]
[388874545,1759452635427,-252.87371743,0.00021573,2]
[388874546,1759452635436,-252.87371743,0.00021579,2]
[388874547,1759452635445,-155.82624728,0.00021585,2]
[388874548,1759452635455,-1318.71,0.00021589,2]
[388874549,1759452635464,-1314.21,0.00021589,2]
[388874550,1759452635473,-1286.4,0.00021589,2]
[388874551,1759452635482,-597.89715736,0.00021591,2]
[388874552,1759452635492,-252.87371743,0.00021596,2]
[388874553,1759452635501,-173.33015439,0.00021599,2]
[388874554,1759452635510,-155.82624728,0.000216,2]
[388874555,1759452635520,-160.0,0.000216,2]
[388874556,1759452635529,-160.0,0.000216,2]
[388874557,1759452635538,-160.0,0.000216,2]
[388874558,1759452635548,-160.0,0.000216,3]
[388874559,1759452635557,-160.0,0.000216,3]
[388874560,1759452635567,-160.0,0.000216,4]
[388874561,1759452635576,-160.0,0.000216,4]
[388874562,1759452635585,-173.33015439,0.000216,2]
[388874563,1759452635595,-173.33015439,0.00021604,2]
[388874564,1759452635604,-166.12888768,0.0002161,2]
[388874565,1759452635614,-597.89715736,0.0002161,2]
[388874566,1759452635623,-166.12888768,0.00021617,2]
[388874567,1759452635633,-166.12888768,0.00021618,2]
[388874568,1759452635643,-597.89715736,0.00021624,2]
[388874569,1759452635659,-1988.665,0.00021645,2]
[388874570,1759452635674,-173.33015439,0.00021645,2]
[388874571,1759452635685,-155.82624728,0.00021654,2]
[388874572,1759452635694,-597.89715736,0.00021662,2]
[388874573,1759452635704,-155.82624728,0.00021666,2]
[388874574,1759452635715,-252.87371743,0.00021667,2]
[388874575,1759452635725,-597.89715736,0.00021668,2]
[388874576,1759452635735,-155.82624728,0.0002167,2]
[388874577,1759452635744,-166.12888768,0.00021677,2]
[388874578,1759452635753,-32858.19172643,0.00021698,2]
[388874579,1759452635763,-161.19485015,0.00021699,2]
[388874580,1759452635772,-173.33015439,0.000217,2]
[388874581,1759452635782,-161.59586047,0.00021714,2]
[388874582,1759452635791,-1000.0,0.00021773,2]
[388874583,1759452635809,-3580.4549,0.0002178,2]
[388874584,1759452635821,-1000.0,0.0002178,2]
[388874585,1759452635830,-2223.05815448,0.0002178,2]
[388874586,1759452635840,-226.62229005,0.0002178,2]
[388874587,1759452635849,-168.0,0.00021799,2]
[388874588,1759452635859,-27000.0,0.000218,2]
[388874589,1759452635869,-983.52360335,0.000218,2]
[388874590,1759452635879,-158.2262283,0.000218,2]
[388874591,1759452635889,-577.58025079,0.000218,2]
[388874592,1759452635898,-618.51786956,0.000218,2]
[388874593,1759452635908,-5000.0,0.000218,2]
[388874594,1759452635917,-811.5070046,0.00021827,2]
[388874595,1759452635929,-78507.8868059,0.00021827,2]
[388874596,1759452635939,-3014.5750238,0.00021827,2]
[388874597,1759452635950,-1304.9755152,0.00021827,2]
[388874598,1759452635960,-6462.4537224,0.00021827,2]
[388874599,1759452635969,-161.19485015,0.00021836,2]
[388874600,1759452635978,-154.67,0.00021851,2]
[388874601,1759452635988,-207.0,0.00021867,2]
[388874602,1759452635997,-400.0,0.0002187,2]
[388874603,1759452636007,-400.0,0.0002187,2]
[388874604,1759452636016,-700.0,0.0002187,2]
[388874605,1759452636027,-500.0,0.00021873,2]
[388874606,1759452636037,-164123.33429899,0.0002188,2]
[388874607,1759452636048,-5000.0,0.0002188,3]
[388874608,1759452636057,-3500.0,0.0002188,2]
[388874609,1759452636067,-1678.67235621,0.0002188,2]
[388874610,1759452636077,-186.50301685,0.0002188,2]
[388874611,1759452636086,-172.15348089,0.0002189,2]
[388874612,1759452636098,-150.74,0.0002189,2]
[388874613,1759452636109,-150.74,0.0002189,2]
[388874614,1759452636120,-150.74,0.0002189,2]
[388874615,1759452636130,-150.74,0.0002189,2]
[388874616,1759452636140,-150.74,0.0002189,2]
[388874617,1759452636150,-150.74,0.0002189,2]
[388874618,1759452636161,-150.74,0.0002189,2]
[388874619,1759452636170,-150.74,0.0002189,2]
[388874620,1759452636179,-150.74,0.0002189,2]
[388874621,1759452636188,-150.74,0.0002189,2]
[388874622,1759452636198,-150.74,0.0002189,2]
[388874623,1759452636208,-150.74,0.0002189,2]
[388874624,1759452636217,-150.74,0.0002189,2]
[388874625,1759452636228,-150.74,0.0002189,2]
[388874626,1759452636238,-150.74,0.0002189,2]
[388874627,1759452636247,-666.0,0.00021899,2]
[388874628,1759452636257,-300.0,0.00021899,2]
[388874629,1759452636267,-300.0,0.00021899,2]
[388874630,1759452636277,-1031.162,0.00021899,2]
[388874631,1759452636286,-1250.0,0.00021899,2]
[388874632,1759452636296,-1250.0,0.00021899,2]
[388874633,1759452636305,-1250.0,0.00021899,2]
[388874634,1759452636315,-1250.0,0.00021899,2]
[388874635,1759452636326,-1250.0,0.00021899,2]
[388874636,1759452636335,-1250.0,0.00021899,2]
[388874637,1759452636345,-1250.0,0.00021899,2]
[388874638,1759452636354,-1250.0,0.00021899,2]
[388874639,1759452636364,-1250.0,0.00021899,2]
[388874640,1759452636374,-1250.0,0.00021899,2]
[388874641,1759452636383,-1250.0,0.00021899,2]
[388874642,1759452636392,-1250.0,0.00021899,2]
[388874643,1759452636402,-1250.0,0.00021899,2]
[388874644,1759452636416,-1250.0,0.00021899,2]
[388874645,1759452636426,-1250.0,0.00021899,2]
[388874646,1759452636438,-1250.0,0.00021899,2]
[388874647,1759452636449,-1250.0,0.00021899,2]
[388874648,1759452636460,-1250.0,0.00021899,2]
[388874649,1759452636469,-1250.0,0.00021899,2]
[388874650,1759452636479,-1250.0,0.00021899,2]
[388874651,1759452636489,-1250.0,0.00021899,2]
[388874652,1759452636499,-1250.0,0.00021899,2]
[388874653,1759452636509,-1250.0,0.00021899,2]
[388874654,1759452636519,-1250.0,0.00021899,2]
[388874655,1759452636529,-1446.0,0.000219,2]
[388874656,1759452636540,-109339.05695038,0.000219,2]
[388874657,1759452636550,-1000.0,0.000219,2]
[388874658,1759452636560,-1000.0,0.000219,2]
[388874659,1759452636570,-1000.0,0.000219,2]
[388874660,1759452636580,-1000.0,0.000219,2]
[388874661,1759452636589,-89304.80527136,0.000219,2]
[388874662,1759452636607,-51266.96918083,0.000219,2]
[388874663,1759452636619,-68134.79307493,0.000219,2]
[388874664,1759452636630,-153563.27009618,0.000219,2]
[388874665,1759452636721,-287.44003504,0.000219,2]
[388874666,1759452636733,-1835.25799297,0.000219,2]
[388874673,1759452642924,-388.13728033,0.00019567,2]
[388874679,1759452644449,-232.86271967,0.00019567,2]
[388874680,1759452644459,-150.0,0.00021601,2]
[388874681,1759452644468,-500.0,0.00021601,2]
[388874682,1759452644477,-500.0,0.00021601,2]
[388874683,1759452644486,-150.0,0.00021601,2]
[388874684,1759452644496,-2358.69214056,0.000217,2]
[388874685,1759452645160,-206.78099921,0.00021122,2]
[388874686,1759452645170,-500.0,0.00021122,2]
[388874687,1759452645179,-192.43507455,0.00021122,2]
[388874688,1759452645189,-351.75904226,0.000217,2]
[388874689,1759452647054,-150.0,0.00019567,2]
[388874690,1759452647063,-150.0,0.00019567,2]
[388874691,1759452647074,-150.0,0.00019567,2]
[388874692,1759452647084,-172.78849857,0.00021122,2]
[388874693,1759452647094,-274.04523244,0.00021122,2]
[388874694,1759452647104,-4280.08476796,0.000217,2]
[388874695,1759452647143,-1174.910634,0.000217,2]
[388874696,1759452647180,-748.61769651,0.000217,2]
[388874697,1759452647189,-304.49678674,0.000218,2]
[388874698,1759452647199,-553.41257278,0.00021875,2]
[388874699,1759452647209,-500.0,0.00021875,2]
[388874700,1759452647219,-317.01294197,0.0002188,2]
[388874701,1759452649216,-421.99169803,0.0002188,2]
[388874702,1759452649226,-10587.65227701,0.000219,2]
[388874703,1759452649821,-8946.4,0.000219,2]
[388874704,1759452649835,-608.21731146,0.000219,2]
[388874706,1759452745304,500.0,0.00027397,120]
[388874707,1759452745479,500.0,0.00027671,120]
[388874708,1759452745605,492.65901372,0.00027945,120]
[388874713,1759452814447,1000.0,0.00030137,120]
[388874714,1759452828844,3200.0,0.00030136,120]
[388874716,1759452866248,1000.0,0.00030137,120]
[388874717,1759452872935,1046.0,0.00030137,120]
[388874718,1759452880607,1000.0,0.00030137,120]
[388874719,1759452885961,1000.0,0.00030137,120]
[388874720,1759452932931,1200.0,0.00030136,120]
[388874724,1759453046518,600.0,0.00015797,2]
[388874725,1759453047602,284.93621329,0.00016438,2]
[388874726,1759453047629,315.06378671,0.00016438,2]
[388874736,1759453270161,3126.099396,7.945e-05,2]
[388874924,1759453832640,-600.0,0.0001708,2]
[388874925,1759453832650,-250.0,0.0001716,2]
[388874926,1759453832662,-600.0,0.00017721,2]
[388874927,1759453832672,-300.0,0.00017722,2]
[388874928,1759453832682,-1200.0,0.00017722,2]
[388874929,1759453832692,-3048.52974552,0.00018036,2]
[388874930,1759453832704,-151.0,0.00018197,2]
[388874931,1759453832713,-151.0,0.00018197,2]
[388874932,1759453832723,-151.0,0.00018197,2]
[388874933,1759453832732,-151.0,0.00018197,2]
[388874934,1759453832743,-151.0,0.00018197,2]
[388874935,1759453832753,-151.0,0.00018197,2]
[388874936,1759453832763,-151.0,0.00018197,2]
[388874937,1759453832772,-151.0,0.00018197,2]
[388874938,1759453832782,-200.0,0.00018197,2]
[388874939,1759453832791,-205.62,0.00018197,2]
[388874940,1759453832800,-1307.0,0.00018208,2]
[388874941,1759453832809,-570.0,0.00018208,2]
[388874942,1759453832818,-1585.0,0.00018208,2]
[388874943,1759453832828,-815.0,0.00018208,2]
[388874944,1759453832837,-4236.0,0.00018208,2]
[388874945,1759453832847,-1180.0,0.00018208,2]
[388874946,1759453832856,-6235.0,0.00018208,2]
[388874947,1759453832866,-728.0,0.00018208,2]
[388874948,1759453832876,-4114.0,0.00018208,2]
[388874950,1759453832886,-600.0,0.00018362,2]
[388874952,1759453832895,-1103.12,0.0001876,2]
[388874954,1759453832904,-195.0,0.00018787,2]
[388874956,1759453832911,-250.0,0.00018787,2]
[388874958,1759453832919,-165.71,0.00018825,2]
[388874960,1759453832929,-150.0,0.00018888,2]
[388874962,1759453832938,-600.0,0.00019004,2]
[388874964,1759453832947,-846.33,0.0001904,2]
[388874966,1759453832958,-370.49393606,0.00019057,2]
[388874968,1759453832967,-1334.54,0.00019092,2]
[388874970,1759453832975,-162.20790554,0.000191,2]
[388874972,1759453832985,-302.19,0.00019133,2]
[388874974,1759453832995,-301.94,0.00019144,2]
[388874976,1759453833005,-301.02,0.0001916,2]
[388874978,1759453833015,-162.20790554,0.000192,2]
[388874980,1759453833024,-541.64396375,0.00019205,2]
[388874982,1759453833033,-303.12,0.00019213,2]
[388874984,1759453833042,-1680.0,0.00019438,2]
[388874986,1759453833051,-183.02796208,0.00019466,2]
[388874988,1759453833060,-524.7124,0.00019507,2]
[388874990,1759453833069,-305.01,0.00019541,2]
[388874992,1759453833078,-301.7,0.00019541,2]
[388874994,1759453833088,-301.55,0.00019541,2]
[388874995,1759453833097,-300.45,0.00019541,2]
[388874998,1759453833106,-303.24,0.00019541,2]
[388874999,1759453833116,-302.35,0.00019541,2]
[388875001,1759453833125,-437.03553028,0.00019541,2]
[388875003,1759453833134,-303.71,0.00019542,2]
[388875006,1759453833144,-305.5,0.00019542,2]
[388875008,1759453833153,-300.49,0.00019545,2]
[388875010,1759453833162,-4915.70448467,0.00019548,2]
[388875012,1759453833171,-500.0,0.00019566,2]
[388875014,1759453833180,-500.0,0.00019566,2]
[388875016,1759453833189,-500.0,0.00019566,2]
[388875018,1759453833198,-500.0,0.00019566,2]
[388875020,1759453833208,-500.0,0.00019566,2]
[388875022,1759453833225,-376.98726948,0.00019566,2]
[388875024,1759453833235,-500.0,0.00019566,2]
[388875026,1759453833245,-183.50748255,0.00019566,2]
[388875028,1759453833254,-500.0,0.00019566,2]
[388875030,1759453833264,-249.03344547,0.00019566,2]
[388875032,1759453833273,-360.48989065,0.00019566,2]
[388875034,1759453833282,-500.0,0.00019566,2]
[388875036,1759453833291,-500.0,0.00019566,2]
[388875038,1759453833302,-500.0,0.00019566,2]
[388875040,1759453833311,-500.0,0.00019566,2]
[388875042,1759453833320,-500.0,0.00019566,2]
[388875044,1759453833328,-500.0,0.00019566,2]
[388875046,1759453833337,-500.0,0.00019566,2]
[388875048,1759453833346,-500.0,0.00019566,2]
[388875050,1759453833355,-500.0,0.00019566,2]
[388875052,1759453833365,-500.0,0.00019566,2]
[388875054,1759453833374,-500.0,0.00019566,2]
[388875056,1759453833384,-500.0,0.00019566,2]
[388875058,1759453833393,-500.0,0.00019566,2]
[388875060,1759453833402,-208.34795083,0.00019566,2]
[388875062,1759453833411,-500.0,0.00019566,2]
[388875064,1759453833421,-500.0,0.00019566,2]
[388875065,1759453833430,-500.0,0.00019566,2]
[388875066,1759453833439,-500.0,0.00019566,2]
[388875067,1759453833448,-500.0,0.00019566,2]
[388875068,1759453833457,-500.0,0.00019566,2]
[388875069,1759453833466,-500.0,0.00019566,2]
[388875070,1759453833475,-500.0,0.00019566,2]
[388875071,1759453833484,-500.0,0.00019566,2]
[388875072,1759453833493,-248.4,0.00019566,2]
[388875073,1759453833502,-305.71,0.00019566,2]
[388875074,1759453833510,-305.6,0.00019566,2]
[388875075,1759453833519,-301.29,0.00019566,2]
[388875076,1759453833528,-197.939,0.00019567,2]
[388875077,1759453833537,-200.435,0.00019567,2]
[388875078,1759453833546,-249.431,0.00019567,2]
[388875079,1759453833554,-301.13,0.00019567,2]
[388875080,1759453833563,-301.11,0.00019567,2]
[388875081,1759453833572,-209.239,0.00019569,2]
[388875082,1759453833580,-299.508,0.00019569,2]
[388875083,1759453833589,-181.764,0.00019569,2]
[388875084,1759453833598,-187.683,0.00019569,2]
[388875085,1759453833607,-207.393,0.00019569,2]
[388875086,1759453833615,-250.0,0.00019569,2]
[388875087,1759453833624,-161.18,0.00019569,2]
[388875088,1759453833634,-208.508,0.00019569,2]
[388875090,1759453833643,-158.0,0.00019569,2]
[388875092,1759453833653,-214.871,0.00019569,2]
[388875094,1759453833663,-1263.0,0.00019569,2]
[388875096,1759453833672,-2045.0,0.00019569,2]
[388875098,1759453833681,-3399.0,0.00019569,2]
[388875100,1759453833691,-788.0,0.00019569,2]
[388875102,1759453833702,-603.0,0.00019569,2]
[388875104,1759453833711,-600.0,0.00019645,2]
[388875105,1759453833721,-248.4,0.0001984,2]
[388875106,1759453833730,-223.7342296,0.0002,2]
[388875107,1759453833740,-248.4,0.00020114,2]
[388875108,1759453833750,-223.7342296,0.000202,2]
[388875109,1759453833759,-600.0,0.00020287,2]
[388875110,1759453833769,-248.4,0.00020388,2]
[388875111,1759453833779,-150.0,0.00020416,2]
[388875112,1759453833788,-248.43,0.00020662,2]
[388875113,1759453833797,-621.78829552,0.00020683,2]
[388875114,1759453833807,-646.65982734,0.00020683,2]
[388875115,1759453833816,-322.6107,0.00020683,2]
[388875116,1759453833825,-500.0,0.00020683,2]
[388875117,1759453833834,-500.0,0.00020683,2]
[388875118,1759453833843,-500.0,0.00020683,2]
[388875119,1759453833853,-500.0,0.00020683,2]
[388875120,1759453833863,-500.0,0.00020683,2]
[388875121,1759453833873,-248.71531821,0.00020683,2]
[388875122,1759453833883,-200.0,0.000207,7]
[388875123,1759453833892,-500.0,0.000208,7]
[388875124,1759453833902,-152.896124,0.00020805,2]
[388875125,1759453833912,-12834.46490837,0.00020828,2]
[388875126,1759453833921,-217.61931804,0.00020899,2]
[388875127,1759453833931,-1000.0,0.000209,2]
[388875128,1759453833941,-11520.91,0.000209,2]
[388875129,1759453833950,-11520.91,0.000209,2]
[388875130,1759453833959,-11520.91,0.000209,2]
[388875131,1759453833969,-11520.91,0.000209,2]
[388875132,1759453833980,-1082.79943553,0.000209,2]
[388875133,1759453833990,-495.0687864,0.000209,2]
[388875134,1759453833999,-5000.0,0.000209,2]
[388875135,1759453834009,-4947.94497907,0.000209,2]
[388875136,1759453834019,-700.0,0.000209,7]
[388875137,1759453834029,-274.39891379,0.000209,2]
[388875138,1759453834038,-247.77549359,0.000209,2]
[388875139,1759453834049,-500.0,0.000209,2]
[388875140,1759453834059,-500.0,0.000209,2]
[388875141,1759453834068,-500.0,0.000209,2]
[388875142,1759453834077,-500.0,0.000209,2]
[388875143,1759453834087,-440.00033649,0.000209,2]
[388875144,1759453834096,-438.81351647,0.000209,2]
[388875145,1759453834106,-600.0,0.00020928,2]
[388875146,1759453834115,-220.46391929,0.00020973,2]
[388875147,1759453834123,-200.0,0.00020973,2]
[388875148,1759453834133,-150.74,0.0002099,2]
[388875149,1759453834142,-150.74,0.0002099,2]
[388875150,1759453834463,-150.74,0.0002099,2]
[388875151,1759453834473,-150.74,0.0002099,2]
[388875152,1759453834483,-150.74,0.0002099,2]
[388875153,1759453834492,-150.74,0.0002099,2]
[388875154,1759453834501,-150.74,0.0002099,2]
[388875155,1759453834511,-151.0,0.00020997,2]
[388875156,1759453834520,-500.0,0.00020999,2]
[388875157,1759453834530,-236.52737863,0.00020999,2]
[388875158,1759453834539,-178.68486959,0.00020999,2]
[388875159,1759453834548,-369.41779108,0.00020999,2]
[388875160,1759453834558,-300.0,0.00020999,2]
[388875161,1759453834567,-300.0,0.00020999,2]
[388875162,1759453834577,-666.0,0.00020999,2]
[388875163,1759453834586,-666.0,0.00020999,2]
[388875164,1759453834596,-150.0,0.00020999,2]
[388875165,1759453834605,-1378.0,0.00021,2]
[388875166,1759453834614,-285711.56527186,0.00021,2]
[388875167,1759453834623,-880654.73639129,0.00021,2]
[388875168,1759453835330,-1577.10219932,0.00021,2]
[388875169,1759453835341,-411.75610827,0.00021,2]
[388875170,1759453835353,-433.85880056,0.00021,2]
[388875171,1759453835364,-117540.43917762,0.00021,2]
[388875172,1759453835375,-779.70666164,0.00021,2]
[388875173,1759453835387,-3504.9997,0.00021,2]
[388875174,1759453835404,-400.13021298,0.00021,2]
[388875268,1759453840421,-900.0,0.00018208,2]
[388875269,1759453840431,-3516.68468646,0.00021,2]
[388875270,1759453840506,-597.0,0.00021,2]
[388875271,1759453840517,-420.01957379,0.00021,2]
[388875272,1759453840568,-1286.86674357,0.00021,2]
[388875273,1759453840580,-1612.14977291,0.00021,2]
[388875274,1759453840636,-2813.85228289,0.00021,2]
[388875276,1759453842233,-3023.13008019,0.00021,2]
[388875277,1759453842244,-3354.85000009,0.00021,2]
[388875278,1759453842328,-6261.2308213,0.00021,2]
[388875279,1759453842341,-2154.73275715,0.00021,2]
[388875281,1759453842407,-954.11229805,0.00021,2]
[388875282,1759453842506,-1728.62035449,0.00021,2]
[388875289,1759453844784,-673.13174926,0.00020707,2]
[388875290,1759453844795,-916.16390071,0.00020707,2]
[388875291,1759453845022,-174.06435003,0.00020707,2]
[388875292,1759453845033,-515.27777207,0.00021,2]
[388875312,1759453847656,-400.0,0.00021,2]
[388875313,1759453847779,-667.49951749,0.00021,2]
[388875314,1759453868066,600.0,0.00015541,2]
[388875315,1759453869371,600.0,0.00016172,2]
[388875539,1759454446040,3000.0,0.00030137,120]
[388875540,1759454454549,3000.0,0.00030137,120]
[388875543,1759454462191,3000.0,0.00030137,120]
[388875544,1759454468900,3000.0,0.00030137,120]
[388875545,1759454475244,3000.0,0.00030137,120]
[388875546,1759454480875,3000.0,0.00030137,120]
[388875547,1759454488861,3000.0,0.00030137,120]
[388875551,1759454501570,3000.0,0.00030137,120]
[388875552,1759454508489,3000.0,0.00030137,120]
[388875557,1759454516024,3000.0,0.00030137,120]
[388875598,1759454756409,2297.0854154,0.0001659,2]
[388875599,1759454757125,500.0,0.00030136,120]
[388875606,1759454856778,500.0,0.00030137,120]
[388875655,1759455032815,-1200.0,0.00016899,2]
[388875656,1759455032824,-11871.8055545,0.000169,2]
[388875657,1759455032835,-500.0,0.00016973,2]
[388875658,1759455032845,-500.0,0.00016973,2]
[388875659,1759455032855,-2255.05,0.0001699,2]
[388875660,1759455032865,-2255.05,0.0001699,2]
[388875661,1759455032878,-550.0,0.00016999,2]
[388875662,1759455032893,-165.56916504,0.00016999,2]
[388875663,1759455032907,-608.59245376,0.00016999,2]
[388875664,1759455032923,-500.0,0.00016999,2]
[388875665,1759455032939,-500.0,0.00016999,2]
[388875666,1759455032955,-412.0386612,0.00016999,2]
[388875667,1759455032975,-275.61322403,0.00016999,2]
[388875668,1759455032990,-58694.36113408,0.00017,2]
[388875669,1759455033021,-95363.58494948,0.00017,2]
[388875670,1759455033036,-82172.84580732,0.00017,2]
[388875671,1759455033051,-37412.25632122,0.00017,2]
[388875672,1759455033066,-107805.66154343,0.00017,2]
[388875685,1759455040993,-358392.82813832,0.00017,2]
[388875686,1759455041003,-239256.18505875,0.00017,2]
[388875693,1759455043389,-7508.13283341,0.00017,2]
[388875694,1759455043430,-3711.37964551,0.00017,2]
[388875695,1759455043488,-578.51776381,0.00017,2]
[388875696,1759455043500,-113729.89800157,0.00017,2]
[388875697,1759455046348,-6014.84078372,0.00017,2]
[388875698,1759455046359,-457.47500827,0.00017,2]
[388875699,1759455046435,-1135.74813428,0.00017,2]
[388875700,1759455046447,-5843.31181874,0.00017,2]
[388875701,1759455046458,-1008.36,0.00017,2]
[388875708,1759455046575,-106705.23934754,0.00017,2]
[388875709,1759455046584,-11871.8055545,0.00017507,2]
[388875710,1759455046594,-1000.0,0.00017521,2]
[388875711,1759455046603,-1000.0,0.00017521,2]
[388875712,1759455046612,-188.13383575,0.00018068,2]
[388875713,1759455046621,-329.0,0.00018104,2]
[388875714,1759455046631,-11871.8055545,0.00018114,2]
[388875715,1759455046642,-1680.0,0.00018551,2]
[388875716,1759455046652,-195.0,0.00018589,2]
[388875717,1759455046661,-11871.8055545,0.00018722,2]
[388875718,1759455046671,-150.74,0.000188,2]
[388875719,1759455046684,-1000.0,0.00018845,2]
[388875720,1759455046694,-300.0,0.000189,6]
[388875721,1759455046703,-178.95,0.00019004,2]
[388875722,1759455046713,-302.43,0.00019082,2]
[388875723,1759455046723,-303.34,0.00019082,2]
[388875724,1759455046732,-305.42,0.00019082,2]
[388875725,1759455046741,-302.97,0.00019082,2]
[388875726,1759455046751,-302.1,0.00019082,2]
[388875727,1759455046761,-303.2,0.00019082,2]
[388875728,1759455046770,-304.16,0.00019082,2]
[388875729,1759455046780,-303.96,0.00019082,2]
[388875730,1759455046790,-301.59,0.00019082,2]
[388875731,1759455046802,-303.6,0.00019083,2]
[388875732,1759455046811,-302.63,0.00019083,2]
[388875733,1759455046820,-253.86938845,0.00019084,2]
[388875734,1759455046830,-305.44,0.00019086,2]
[388875735,1759455046839,-685.16619301,0.000191,2]
[388875736,1759455046849,-305.07,0.00019103,2]
[388875737,1759455046858,-666.0,0.00019155,3]
[388875738,1759455046868,-200.0,0.00019178,2]
[388875739,1759455046877,-303.46,0.00019194,2]
[388875740,1759455046887,-335.19,0.00019288,2]
[388875741,1759455046896,-685.16619301,0.000193,2]
[388875742,1759455046905,-11871.8055545,0.00019329,2]
[388875743,1759455046915,-685.16619301,0.000195,2]
[388875744,1759455046924,-811.0,0.00019514,2]
[388875745,1759455046934,-1180.0,0.00019514,2]
[388875746,1759455046945,-2101.135,0.00019514,2]
[388875747,1759455046956,-756.206,0.00019514,2]
[388875748,1759455046966,-603.033,0.00019514,2]
[388875749,1759455046982,-2045.0,0.00019514,2]
[388875750,1759455046991,-6236.0,0.00019514,2]
[388875751,1759455047001,-1349.4,0.00019636,2]
[388875752,1759455047010,-685.16619301,0.000197,2]
[388875753,1759455047020,-150.74,0.00019733,2]
[388875754,1759455047029,-61281.65,0.00019743,2]
[388875755,1759455047039,-685.16619301,0.000199,2]
[388875756,1759455047048,-11871.8055545,0.00019936,2]
[388875757,1759455047057,-178.98738369,0.0002,2]
[388875758,1759455047067,-398.0,0.0002,2]
[388875759,1759455047077,-26611.58150839,0.0002,2]
[388875760,1759455047086,-150.0,0.0002,2]
[388875761,1759455047096,-400.0,0.0002,2]
[388875762,1759455047107,-1000.0,0.0002003,2]
[388875763,1759455047118,-198.61527229,0.00020071,2]
[388875764,1759455047127,-240.7457846,0.00020141,2]
[388875765,1759455047136,-178.98738369,0.000202,2]
[388875766,1759455047146,-282.8762969,0.00020212,2]
[388875767,1759455047155,-150.0,0.00020247,2]
[388875768,1759455047165,-545.29,0.00020247,2]
[388875769,1759455047174,-150.0,0.00020247,2]
[388875770,1759455047183,-150.0,0.00020247,2]
[388875771,1759455047193,-164.87,0.00020247,2]
[388875772,1759455047203,-542.78,0.00020247,2]
[388875773,1759455047213,-407.52,0.00020247,2]
[388875774,1759455047222,-175.59,0.00020247,2]
[388875775,1759455047231,-167.81,0.00020247,2]
[388875776,1759455047240,-412.63,0.00020247,2]
[388875777,1759455047250,-655.85,0.00020247,2]
[388875778,1759455047260,-337.23,0.00020247,2]
[388875779,1759455047269,-418.61,0.00020247,2]
[388875780,1759455047279,-335.19,0.00020252,2]
[388875781,1759455047289,-150.0,0.00020278,2]
[388875782,1759455047299,-545.29,0.00020278,2]
[388875783,1759455047308,-325.00680921,0.00020283,2]
[388875784,1759455047317,-167.75,0.00020302,2]
[388875785,1759455047327,-367.13732151,0.00020354,2]
[388875786,1759455047336,-2351.0,0.00020365,2]
[388875787,1759455047346,-2000.0,0.00020388,2]
[388875788,1759455047357,-178.98738369,0.000204,2]
[388875789,1759455047366,-409.26783381,0.00020424,2]
[388875790,1759455047375,-451.39834612,0.00020495,2]
[388875791,1759455047385,-11871.8055545,0.00020543,2]
[388875792,1759455047396,-493.52885842,0.00020566,2]
[388875793,1759455047406,-178.98738369,0.000206,2]
[388875794,1759455047416,-535.65937073,0.00020636,2]
[388875795,1759455047427,-322.6107,0.0002067,2]